fUSD/lending_fUSD_20250511
["ID","MTS","AMOUNT","RATE_DAILY","PERIOD"]
[360746243,1746964246657,-400.0,0.00019862,2]
[360746244,1746964246666,-400.0,0.00019862,2]
[360746245,1746964246676,-400.0,0.00019862,2]
[360746246,1746964246685,-503.64728378,0.00019862,2]
[360746247,1746964246694,-400.0,0.00019862,2]
[360746248,1746964246704,-500.0,0.00019862,2]
[360746249,1746964246714,-400.0,0.00019862,2]
[360746250,1746964246724,-400.0,0.00019862,2]
[360746251,1746964246733,-400.0,0.00019862,2]
[360746252,1746964246745,-400.0,0.00019862,2]
[360746253,1746964246755,-400.0,0.00019862,2]
[360746254,1746964246763,-400.0,0.00019862,2]
[360746255,1746964246773,-400.0,0.00019862,2]
[360746256,1746964246782,-400.0,0.00019862,2]
[360746257,1746964246792,-400.0,0.00019862,2]
[360746258,1746964246803,-400.0,0.00019862,2]
[360746259,1746964246815,-400.0,0.00019862,2]
[360746260,1746964246824,-72925.68,0.00019862,2]
[360746261,1746964246833,-413.77490124,0.00019862,2]
[360746262,1746964246842,-400.0,0.00019862,2]
[360746263,1746964246852,-400.0,0.00019862,2]
[360746264,1746964246861,-400.0,0.00019862,2]
[360746265,1746964246871,-400.0,0.00019862,2]
[360746266,1746964246880,-400.0,0.00019862,2]
[360746267,1746964246889,-1698.21,0.00019862,2]
[360746268,1746964246899,-400.0,0.00019862,2]
[360746269,1746964246908,-500.0,0.00019862,2]
[360746270,1746964246921,-400.0,0.00019862,2]
[360746271,1746964246931,-400.0,0.00019862,2]
[360746272,1746964246941,-400.0,0.00019862,2]
[360746273,1746964246950,-400.0,0.00019862,2]
[360746274,1746964246959,-400.0,0.00019862,2]
[360746275,1746964246969,-462.92375013,0.00019862,2]
[360746276,1746964246978,-400.0,0.00019862,2]
[360746277,1746964246988,-400.0,0.00019862,2]
[360746278,1746964246997,-400.0,0.00019862,2]
[360746279,1746964247007,-400.0,0.00019862,2]
[360746280,1746964247018,-995.11,0.00019862,2]
[360746281,1746964247027,-400.0,0.00019862,2]
[360746282,1746964247037,-492.58608524,0.00019862,2]
[360746283,1746964247046,-400.0,0.00019862,2]
[360746284,1746964247055,-400.0,0.00019862,2]
[360746285,1746964247065,-498.5502439,0.00019862,2]
[360746286,1746964247074,-400.0,0.00019862,2]
[360746287,1746964247084,-400.0,0.00019862,2]
[360746288,1746964247093,-400.0,0.00019862,2]
[360746289,1746964247103,-400.0,0.00019862,2]
[360746290,1746964247112,-400.0,0.00019862,2]
[360746291,1746964247122,-400.0,0.00019862,2]
[360746292,1746964247131,-213.47301879,0.00019862,2]
[360746293,1746964247141,-400.0,0.00019862,2]
[360746294,1746964247150,-400.0,0.00019862,2]
[360746295,1746964247160,-400.0,0.00019862,2]
[360746296,1746964247170,-400.0,0.00019862,2]
[360746297,1746964247180,-518.67312309,0.00019862,2]
[360746298,1746964247189,-400.0,0.00019862,2]
[360746299,1746964247198,-400.0,0.00019862,2]
[360746300,1746964247208,-400.0,0.00019862,2]
[360746301,1746964247217,-400.0,0.00019862,2]
[360746302,1746964247226,-400.0,0.00019862,2]
[360746303,1746964247236,-400.0,0.00019862,2]
[360746304,1746964247247,-400.0,0.00019862,2]
[360746305,1746964247256,-422.7,0.00019862,2]
[360746306,1746964247266,-400.0,0.00019862,2]
[360746307,1746964247276,-400.0,0.00019862,2]
[360746308,1746964247287,-151.0,0.00019862,2]
[360746309,1746964247297,-400.0,0.00019862,2]
[360746310,1746964247308,-400.0,0.00019862,2]
[360746311,1746964247317,-400.0,0.00019862,2]
[360746312,1746964247327,-400.0,0.00019862,2]
[360746313,1746964247336,-229.22526237,0.00019862,2]
[360746314,1746964247346,-400.0,0.00019862,2]
[360746315,1746964247355,-603.49,0.00019862,2]
[360746316,1746964247364,-400.0,0.00019862,2]
[360746317,1746964247373,-440.94923561,0.00019862,2]
[360746318,1746964247383,-2470.97,0.00019862,2]
[360746319,1746964247393,-425.10333161,0.00019862,2]
[360746320,1746964247403,-400.0,0.00019862,2]
[360746321,1746964247413,-151.0,0.00019862,2]
[360746322,1746964247427,-400.0,0.00019862,2]
[360746323,1746964247437,-400.0,0.00019862,2]
[360746324,1746964247446,-400.0,0.00019862,2]
[360746325,1746964247457,-400.0,0.00019862,2]
[360746326,1746964247468,-400.0,0.00019862,2]
[360746327,1746964247478,-2238.69,0.00019862,2]
[360746328,1746964247488,-506.30358497,0.00019862,2]
[360746329,1746964247500,-448.25846838,0.00019862,2]
[360746330,1746964247510,-400.0,0.00019862,2]
[360746331,1746964247520,-400.0,0.00019862,2]
[360746332,1746964247529,-400.0,0.00019862,2]
[360746333,1746964247538,-400.0,0.00019862,2]
[360746334,1746964247548,-2229.97,0.00019862,2]
[360746335,1746964247559,-515.24,0.00019862,2]
[360746336,1746964247569,-400.0,0.00019862,2]
[360746337,1746964247578,-400.0,0.00019862,2]
[360746338,1746964247588,-400.0,0.00019862,2]
[360746339,1746964247597,-243.78868585,0.00019862,2]
[360746340,1746964247608,-500.0,0.00019862,2]
[360746341,1746964247618,-400.0,0.00019862,2]
[360746342,1746964247627,-400.0,0.00019862,2]
[360746343,1746964247636,-847.3,0.00019862,2]
[360746344,1746964247645,-450.0,0.00019862,2]
[360746345,1746964247656,-1663.9,0.00019862,2]
[360746346,1746964247665,-1025.68416154,0.00019862,2]
[360746347,1746964247675,-357.16,0.00019862,2]
[360746348,1746964247685,-400.0,0.00019862,2]
[360746349,1746964247694,-634.1,0.00019862,2]
[360746350,1746964247703,-400.0,0.00019862,2]
[360746351,1746964247712,-461.20088184,0.00019862,2]
[360746352,1746964247722,-400.0,0.00019862,2]
[360746353,1746964247731,-151.0,0.00019862,2]
[360746354,1746964247741,-400.0,0.00019862,2]
[360746355,1746964247750,-400.0,0.00019862,2]
[360746356,1746964247759,-3674.83379779,0.00019862,2]
[360746357,1746964247794,-787.42620221,0.00019862,2]
[360746358,1746964247805,-400.0,0.00019863,2]
[360746359,1746964247815,-400.0,0.00019863,2]
[360746360,1746964247825,-400.0,0.00019863,2]
[360746361,1746964247835,-400.0,0.00019863,2]
[360746362,1746964247844,-400.0,0.00019863,2]
[360746363,1746964247854,-455.74215902,0.00019863,2]
[360746364,1746964247864,-400.0,0.00019863,2]
[360746365,1746964247873,-400.0,0.00019863,2]
[360746366,1746964247883,-400.0,0.00019863,2]
[360746367,1746964247892,-400.0,0.00019863,2]
[360746368,1746964247902,-400.0,0.00019863,2]
[360746369,1746964247911,-313.74622307,0.00019863,2]
[360746370,1746964247921,-400.0,0.00019863,2]
[360746371,1746964247931,-400.0,0.00019863,2]
[360746372,1746964247941,-400.0,0.00019863,2]
[360746373,1746964247950,-5486.8932357,0.00019864,2]
[360746374,1746964247960,-300.0,0.0001987,2]
[360746375,1746964247969,-400.0,0.0001987,2]
[360746376,1746964247979,-500.0,0.0001987,2]
[360746377,1746964247988,-400.0,0.0001987,2]
[360746378,1746964247998,-489.37748451,0.0001987,2]
[360746379,1746964248009,-400.0,0.0001987,2]
[360746380,1746964248019,-400.0,0.0001987,2]
[360746381,1746964248029,-400.0,0.0001987,2]
[360746382,1746964248039,-400.0,0.0001987,2]
[360746383,1746964248049,-278.87,0.0001987,2]
[360746384,1746964248058,-400.0,0.0001987,2]
[360746385,1746964248068,-400.0,0.0001987,2]
[360746386,1746964248078,-400.0,0.0001987,2]
[360746387,1746964248088,-387.74,0.0001987,2]
[360746388,1746964248098,-1514.81,0.0001987,2]
[360746389,1746964248107,-679.36,0.0001987,2]
[360746390,1746964248116,-400.0,0.0001987,2]
[360746391,1746964248126,-400.0,0.0001987,2]
[360746392,1746964248136,-400.0,0.0001987,2]
[360746393,1746964248145,-400.0,0.0001987,2]
[360746394,1746964248154,-606.47,0.0001987,2]
[360746395,1746964248164,-400.0,0.0001987,2]
[360746396,1746964248175,-504.19,0.0001987,2]
[360746397,1746964248184,-1680.43,0.0001987,2]
[360746398,1746964248193,-400.0,0.0001987,2]
[360746399,1746964248203,-400.0,0.0001987,2]
[360746400,1746964248212,-400.0,0.0001987,2]
[360746401,1746964248222,-400.0,0.0001987,2]
[360746402,1746964248231,-910.12,0.0001987,2]
[360746403,1746964248241,-400.0,0.0001987,2]
[360746404,1746964248251,-400.0,0.0001987,2]
[360746405,1746964248260,-400.0,0.0001987,2]
[360746406,1746964248269,-400.0,0.0001987,2]
[360746407,1746964248279,-400.0,0.0001987,2]
[360746408,1746964248289,-400.0,0.0001987,2]
[360746409,1746964248298,-400.0,0.0001987,2]
[360746410,1746964248308,-400.0,0.0001987,2]
[360746411,1746964248317,-400.0,0.0001987,2]
[360746412,1746964248327,-1342.0,0.0001987,2]
[360746413,1746964248336,-400.0,0.0001987,2]
[360746414,1746964248345,-400.0,0.0001987,2]
[360746415,1746964248355,-400.0,0.0001987,2]
[360746416,1746964248365,-400.0,0.0001987,2]
[360746417,1746964248374,-287.67657462,0.0001987,2]
[360746418,1746964248383,-400.0,0.0001987,2]
[360746419,1746964248394,-400.0,0.0001987,2]
[360746420,1746964248404,-400.0,0.0001987,2]
[360746421,1746964248413,-400.0,0.0001987,2]
[360746422,1746964248424,-400.0,0.0001987,2]
[360746423,1746964248433,-400.0,0.0001987,2]
[360746424,1746964248442,-575.18,0.0001987,2]
[360746425,1746964248451,-400.0,0.0001987,2]
[360746426,1746964248461,-400.0,0.0001987,2]
[360746427,1746964248470,-400.0,0.0001987,2]
[360746428,1746964248479,-400.0,0.0001987,2]
[360746429,1746964248488,-548.87,0.0001987,2]
[360746430,1746964248497,-7252.14,0.0001987,2]
[360746431,1746964248507,-400.0,0.0001987,2]
[360746432,1746964248516,-391.17216632,0.0001987,2]
[360746433,1746964248525,-400.0,0.0001987,2]
[360746434,1746964248536,-400.0,0.0001987,2]
[360746435,1746964248545,-400.0,0.0001987,2]
[360746436,1746964248554,-172.08177272,0.0001987,2]
[360746437,1746964248563,-400.0,0.0001987,2]
[360746438,1746964248573,-466.66,0.0001987,2]
[360746439,1746964248582,-422.94,0.0001987,2]
[360746440,1746964248592,-1000.0,0.0001987,2]
[360746441,1746964248601,-400.0,0.0001987,2]
[360746442,1746964248610,-400.0,0.0001987,2]
[360746443,1746964248619,-400.0,0.0001987,2]
[360746444,1746964248629,-417.36754678,0.0001987,2]
[360746445,1746964248639,-400.0,0.0001987,2]
[360746446,1746964248649,-502.03980317,0.0001987,2]
[360746447,1746964248658,-400.0,0.0001987,2]
[360746448,1746964248668,-400.0,0.0001987,2]
[360746449,1746964248678,-400.0,0.0001987,2]
[360746450,1746964248688,-400.0,0.0001987,2]
[360746451,1746964248697,-400.0,0.0001987,2]
[360746452,1746964248706,-400.0,0.0001987,2]
[360746453,1746964248716,-400.0,0.0001987,2]
[360746454,1746964248725,-400.0,0.0001987,2]
[360746455,1746964248735,-400.0,0.0001987,2]
[360746456,1746964248744,-400.0,0.0001987,2]
[360746457,1746964248753,-400.0,0.0001987,2]
[360746458,1746964248763,-400.0,0.0001987,2]
[360746459,1746964248825,-400.0,0.0001987,2]
[360746460,1746964248837,-23875.6968319,0.0001987,2]
[360746461,1746964249127,-8436.85371523,0.0001987,2]
[360746462,1746964249605,-400.0,0.00019838,2]
[360746463,1746964249614,-58.33018242,0.00019838,2]
[360746464,1746964249637,-101.37981758,0.00019838,2]
[360746465,1746964249647,-7251.96156592,0.0001987,2]
[360746466,1746964249659,-33361.16788695,0.0001987,2]
[360746467,1746964249669,-644.18,0.0001987,2]
[360746468,1746964249680,-4001.36,0.0001987,2]
[360746469,1746964249690,-400.0,0.0001987,2]
[360746470,1746964249699,-409.74,0.0001987,2]
[360746471,1746964249710,-151.0,0.0001987,2]
[360746472,1746964249719,-151.0,0.0001987,2]
[360746473,1746964249728,-400.0,0.0001987,2]
[360746474,1746964249737,-1698.21,0.0001987,2]
[360746475,1746964249747,-400.0,0.0001987,2]
[360746476,1746964249756,-400.0,0.0001987,2]
[360746477,1746964249766,-400.0,0.0001987,2]
[360746478,1746964249775,-400.0,0.0001987,2]
[360746479,1746964249785,-400.0,0.0001987,2]
[360746480,1746964249795,-400.0,0.0001987,2]
[360746481,1746964249804,-400.0,0.0001987,2]
[360746482,1746964249814,-400.0,0.0001987,2]
[360746483,1746964249824,-400.0,0.0001987,2]
[360746484,1746964249833,-400.0,0.0001987,2]
[360746485,1746964249844,-400.0,0.0001987,2]
[360746486,1746964249853,-400.0,0.0001987,2]
[360746487,1746964249863,-132.87826448,0.0001987,2]
[360746488,1746964249875,-267.12173552,0.0001987,2]
[360746489,1746964249884,-400.0,0.0001987,2]
[360746490,1746964249894,-995.11,0.0001987,2]
[360746491,1746964249903,-400.0,0.0001987,2]
[360746492,1746964249913,-450.0,0.0001987,2]
[360746493,1746964249922,-400.0,0.0001987,2]
[360746494,1746964249932,-400.0,0.0001987,2]
[360746495,1746964249942,-293.07161677,0.0001987,2]
[360746496,1746964249954,-159.72838323,0.0001987,2]
[360746497,1746964249964,-400.0,0.0001987,2]
[360746498,1746964249974,-400.0,0.0001987,2]
[360746499,1746964249984,-222.18794851,0.0001987,2]
[360746500,1746964250094,-400.0,0.00019838,2]
[360746501,1746964250104,-400.0,0.00019838,2]
[360746502,1746964250114,-177.81205149,0.0001987,2]
[360746503,1746964250124,-400.0,0.0001987,2]
[360746504,1746964250133,-2879.08,0.0001987,2]
[360746505,1746964250142,-400.0,0.0001987,2]
[360746506,1746964250153,-392.83591807,0.0001987,2]
[360746507,1746964250184,-7.16408193,0.0001987,2]
[360746508,1746964250193,-258.64837032,0.0001987,2]
[360746509,1746964250205,-141.35162968,0.0001987,2]
[360746510,1746964250216,-400.0,0.0001987,2]
[360746511,1746964250227,-581.83,0.0001987,2]
[360746512,1746964250236,-400.0,0.0001987,2]
[360746513,1746964250246,-400.0,0.0001987,2]
[360746514,1746964250256,-400.0,0.0001987,2]
[360746515,1746964250265,-400.0,0.0001987,2]
[360746516,1746964250274,-306.85977497,0.0001987,2]
[360746517,1746964250285,-93.14022503,0.0001987,2]
[360746518,1746964250294,-353.63789232,0.0001987,2]
[360746519,1746964250303,-400.0,0.0001987,2]
[360746520,1746964250312,-400.0,0.0001987,2]
[360746521,1746964250322,-400.0,0.0001987,2]
[360746522,1746964250331,-400.0,0.0001987,2]
[360746523,1746964250340,-422.7,0.0001987,2]
[360746524,1746964250350,-499.94280306,0.0001987,2]
[360746525,1746964250359,-400.0,0.0001987,2]
[360746526,1746964250369,-400.0,0.0001987,2]
[360746527,1746964250378,-400.0,0.0001987,2]
[360746528,1746964250387,-400.0,0.0001987,2]
[360746529,1746964250397,-603.49,0.0001987,2]
[360746530,1746964250407,-2470.97,0.0001987,2]
[360746531,1746964250416,-400.0,0.0001987,2]
[360746532,1746964250428,-400.0,0.0001987,2]
[360746533,1746964250437,-400.0,0.0001987,2]
[360746534,1746964250446,-400.0,0.0001987,2]
[360746535,1746964250455,-400.0,0.0001987,2]
[360746536,1746964250464,-400.0,0.0001987,2]
[360746537,1746964250473,-392.11907959,0.0001987,2]
[360746538,1746964250484,-261.05092041,0.0001987,2]
[360746539,1746964250493,-194.98599414,0.0001987,2]
[360746540,1746964250503,-400.0,0.0001987,2]
[360746541,1746964250512,-2238.69,0.0001987,2]
[360746542,1746964250521,-165.20153337,0.0001987,2]
[360746543,1746964250530,-400.0,0.0001987,2]
[360746544,1746964250539,-400.0,0.0001987,2]
[360746545,1746964250548,-400.0,0.0001987,2]
[360746546,1746964250557,-427.28,0.0001987,2]
[360746547,1746964250566,-2229.97,0.0001987,2]
[360746548,1746964250575,-400.0,0.0001987,2]
[360746549,1746964250584,-400.0,0.0001987,2]
[360746550,1746964250594,-400.0,0.0001987,2]
[360746551,1746964250603,-500.0,0.0001987,2]
[360746552,1746964250613,-400.0,0.0001987,2]
[360746553,1746964250622,-400.0,0.0001987,2]
[360746554,1746964250631,-400.0,0.0001987,2]
[360746555,1746964250641,-179.785275,0.0001987,2]
[360746556,1746964250651,-400.71,0.0001987,2]
[360746557,1746964250660,-151.0,0.0001987,2]
[360746558,1746964250670,-847.3,0.0001987,2]
[360746559,1746964250680,-510.82,0.0001987,2]
[360746560,1746964250690,-1663.9,0.0001987,2]
[360746561,1746964250701,-400.0,0.0001987,2]
[360746562,1746964250713,-400.0,0.0001987,2]
[360746563,1746964250725,-1207.18,0.0001987,2]
[360746564,1746964250735,-634.1,0.0001987,2]
[360746565,1746964250746,-342.07170156,0.0001987,2]
[360746566,1746964250757,-400.0,0.0001987,2]
[360746567,1746964250769,-400.0,0.0001987,2]
[360746568,1746964250779,-151.0,0.0001987,2]
[360746569,1746964250788,-400.0,0.0001987,2]
[360746570,1746964250797,-400.0,0.0001987,2]
[360746571,1746964250806,-481.29,0.0001987,2]
[360746572,1746964250816,-4462.26,0.0001987,2]
[360746573,1746964250826,-400.0,0.0001987,2]
[360746574,1746964250836,-21190.98205992,0.00019871,2]
[360746575,1746964250852,-518.18756832,0.00019871,2]
[360746576,1746964342249,222.77887408,0.00028,120]
[360746577,1746964392357,746.20566321,0.00028,120]
[360746578,1746964393312,158.03680086,0.00028,120]
[360746579,1746964414197,500.0,0.00025,120]
[360746580,1746964508283,1000.0,0.00028,120]
[360746581,1746964619638,598.72,0.00028,120]
[360746582,1746964772874,299.96,0.00028,120]
[360746583,1746964841670,150.0,0.000185,5]
[360746584,1746964944110,575.11,0.00016902,2]
[360746585,1746965035142,913.16,0.00025886,120]
[360746586,1746965077305,250.0,0.00017,2]
[360746587,1746965120001,1000.0,0.00028,120]
[360746588,1746965226084,-803.622184,0.00018732,2]
[360746589,1746965246113,-145.247351,0.00018732,2]
[360746590,1746965246134,-616.07,0.00018781,2]
[360746591,1746965246155,-293.72771627,0.00018826,2]
[360746599,1746965432108,-590.29,0.00018769,2]
[360746600,1746965432118,-163.97,0.00018769,2]
[360746601,1746965432128,-227.8841164,0.00018826,2]
[360746602,1746965432162,-391.54816733,0.00018826,2]
[360746603,1746965432174,-1000.0,0.0001883,2]
[360746604,1746965432184,-300.0,0.00019,2]
[360746605,1746965432194,-575.11,0.00019166,2]
[360746606,1746965432203,-151.0,0.00019178,2]
[360746607,1746965432212,-166.77,0.00019391,2]
[360746608,1746965432222,-1200.0,0.00019621,2]
[360746609,1746965432231,-300.0,0.00019621,2]
[360746610,1746965432242,-1159.669,0.00019622,2]
[360746611,1746965432251,-2064.48,0.00019622,2]
[360746612,1746965432261,-181.4873,0.00019658,2]
[360746613,1746965432271,-200.0,0.00019721,2]
[360746614,1746965432280,-168.21977824,0.00019736,2]
[360746615,1746965432291,-500.0,0.00019739,2]
[360746616,1746965432300,-500.0,0.00019739,2]
[360746617,1746965432310,-500.0,0.00019739,2]
[360746618,1746965432320,-500.0,0.00019739,2]
[360746619,1746965432330,-500.0,0.00019739,2]
[360746620,1746965432340,-500.0,0.00019739,2]
[360746621,1746965432351,-500.0,0.00019739,2]
[360746622,1746965432361,-500.0,0.00019739,2]
[360746623,1746965432370,-382.22570418,0.00019739,2]
[360746624,1746965432380,-500.0,0.00019739,2]
[360746625,1746965432390,-500.0,0.00019739,2]
[360746626,1746965432399,-500.0,0.00019739,2]
[360746627,1746965432409,-500.0,0.00019739,2]
[360746628,1746965432418,-500.0,0.00019739,2]
[360746629,1746965432431,-500.0,0.00019739,2]
[360746630,1746965432440,-500.0,0.00019739,2]
[360746631,1746965432449,-500.0,0.00019739,2]
[360746632,1746965432459,-500.0,0.00019739,2]
[360746633,1746965432468,-500.0,0.00019739,2]
[360746634,1746965432477,-500.0,0.00019739,2]
[360746635,1746965432486,-500.0,0.00019739,2]
[360746636,1746965432495,-500.0,0.00019739,2]
[360746637,1746965432505,-500.0,0.00019739,2]
[360746638,1746965432514,-500.0,0.00019739,2]
[360746639,1746965432523,-23301.9212699,0.0001974,2]
[360746640,1746965432532,-247.64922239,0.0001974,2]
[360746641,1746965432542,-207.4,0.00019747,2]
[360746642,1746965432551,-219.09922119,0.00019759,2]
[360746643,1746965432560,-225.32578523,0.00019759,2]
[360746644,1746965432570,-500.0,0.00019759,2]
[360746645,1746965432579,-183.4058516,0.00019759,2]
[360746646,1746965432588,-500.0,0.00019759,2]
[360746647,1746965432597,-500.0,0.00019759,2]
[360746648,1746965432606,-500.0,0.00019759,2]
[360746649,1746965432616,-500.0,0.00019759,2]
[360746650,1746965432625,-500.0,0.00019759,2]
[360746651,1746965432634,-560.91714589,0.00019759,2]
[360746653,1746965432644,-157.72804966,0.00019759,2]
[360746655,1746965432653,-151.0,0.00019762,2]
[360746657,1746965432663,-668.65185757,0.00019762,2]
[360746659,1746965432673,-155.15720833,0.00019769,2]
[360746661,1746965432683,-164.92896403,0.0001977,2]
[360746663,1746965432693,-384.58938983,0.0001977,2]
[360746664,1746965432703,-998.44633017,0.0001977,2]
[360746666,1746965432713,-13096.87470019,0.00019772,2]
[360746668,1746965432723,-184.91147,0.00019788,2]
[360746671,1746965432732,-6813.0,0.00019804,2]
[360746672,1746965432742,-4106.372,0.00019804,2]
[360746674,1746965432751,-156.106,0.00019804,2]
[360746676,1746965432760,-12500.0,0.00019812,2]
[360746678,1746965432769,-164.92896403,0.00019813,2]
[360746680,1746965432778,-12500.0,0.00019821,2]
[360746682,1746965432787,-159.63,0.00019827,2]
[360746684,1746965432797,-12500.0,0.0001983,2]
[360746686,1746965432806,-1000.0,0.00019834,2]
[360746688,1746965432815,-400.0,0.00019835,2]
[360746690,1746965432824,-400.0,0.00019835,2]
[360746692,1746965432833,-400.0,0.00019835,2]
[360746694,1746965432842,-450.0,0.00019835,2]
[360746696,1746965432851,-497.23685318,0.00019835,2]
[360746698,1746965432861,-400.0,0.00019835,2]
[360746700,1746965432870,-460.08171012,0.00019835,2]
[360746702,1746965432879,-963.169974,0.00019835,2]
[360746704,1746965432888,-400.0,0.00019835,2]
[360746706,1746965432898,-2194.494275,0.00019835,2]
[360746708,1746965432907,-201.5860984,0.00019835,2]
[360746710,1746965432916,-555.342491,0.00019835,2]
[360746712,1746965432929,-332.44541155,0.00019835,2]
[360746714,1746965432938,-400.0,0.00019835,2]
[360746716,1746965432947,-230.57689116,0.00019835,2]
[360746718,1746965432956,-400.0,0.00019835,2]
[360746720,1746965432966,-400.0,0.00019835,2]
[360746722,1746965432975,-400.0,0.00019835,2]
[360746724,1746965432984,-733.79,0.00019835,2]
[360746726,1746965432994,-282.17252464,0.00019835,2]
[360746728,1746965433005,-179.667918,0.00019835,2]
[360746730,1746965433014,-400.0,0.00019835,2]
[360746732,1746965433023,-400.0,0.00019835,2]
[360746734,1746965433033,-159.0383761,0.00019835,2]
[360746736,1746965433042,-547.32,0.00019835,2]
[360746738,1746965433051,-207.41778016,0.00019835,2]
[360746740,1746965433060,-400.0,0.00019835,2]
[360746742,1746965433070,-400.0,0.00019835,2]
[360746743,1746965433079,-1509.04,0.00019835,2]
[360746745,1746965433089,-400.0,0.00019835,2]
[360746747,1746965433099,-400.0,0.00019835,2]
[360746749,1746965433108,-400.0,0.00019835,2]
[360746751,1746965433117,-400.0,0.00019835,2]
[360746753,1746965433126,-400.0,0.00019835,2]
[360746755,1746965433135,-400.0,0.00019835,2]
[360746757,1746965433144,-662.11,0.00019835,2]
[360746759,1746965433154,-400.0,0.00019835,2]
[360746761,1746965433163,-400.0,0.00019835,2]
[360746763,1746965433173,-400.0,0.00019835,2]
[360746765,1746965433182,-400.0,0.00019835,2]
[360746767,1746965433191,-400.0,0.00019835,2]
[360746769,1746965433200,-400.0,0.00019835,2]
[360746771,1746965433210,-400.0,0.00019835,2]
[360746773,1746965433221,-464.78517387,0.00019835,2]
[360746775,1746965433230,-271.58139678,0.00019835,2]
[360746777,1746965433241,-400.0,0.00019835,2]
[360746779,1746965433251,-400.0,0.00019835,2]
[360746781,1746965433260,-400.0,0.00019835,2]
[360746783,1746965433270,-400.0,0.00019835,2]
[360746785,1746965433279,-400.0,0.00019835,2]
[360746787,1746965433290,-400.0,0.00019835,2]
[360746789,1746965433299,-400.0,0.00019835,2]
[360746791,1746965433310,-400.0,0.00019835,2]
[360746793,1746965433320,-400.0,0.00019835,2]
[360746795,1746965433330,-400.0,0.00019835,2]
[360746797,1746965433340,-538.68545635,0.00019835,2]
[360746799,1746965433350,-480.26,0.00019835,2]
[360746801,1746965433359,-400.0,0.00019835,2]
[360746803,1746965433370,-400.0,0.00019835,2]
[360746804,1746965433379,-400.0,0.00019835,2]
[360746806,1746965433390,-400.0,0.00019835,2]
[360746808,1746965433399,-400.0,0.00019835,2]
[360746810,1746965433409,-400.0,0.00019835,2]
[360746812,1746965433419,-400.0,0.00019835,2]
[360746814,1746965433429,-400.0,0.00019835,2]
[360746816,1746965433439,-400.0,0.00019835,2]
[360746818,1746965433449,-400.0,0.00019835,2]
[360746820,1746965433459,-400.0,0.00019835,2]
[360746822,1746965433468,-400.0,0.00019835,2]
[360746824,1746965433478,-400.0,0.00019835,2]
[360746826,1746965433487,-400.0,0.00019835,2]
[360746828,1746965433498,-399.72421895,0.00019835,2]
[360746830,1746965433508,-507.4309453,0.00019835,2]
[360746832,1746965433518,-664.32,0.00019835,2]
[360746833,1746965433527,-66225.96,0.00019835,2]
[360746834,1746965433537,-400.0,0.00019835,2]
[360746835,1746965433547,-400.0,0.00019835,2]
[360746836,1746965433557,-517.12944921,0.00019835,2]
[360746837,1746965433566,-400.0,0.00019835,2]
[360746838,1746965433575,-400.0,0.00019835,2]